Cogmind - Beta 16 @@@ ROGUE MODE // 2025.10.25 @ 16:22:44 Player: Finestep Result: Destroyed by Y-45 Defender with Heavy Assault Rifle Performance ------------- Evolutions (0) 0 Regions Visited (2) 400 Robots Destroyed (23) 115 Value Destroyed (548) 548 Prototype IDs (12) 240 Alien Tech Used (0) 0 Bonus (0) 0 TOTAL SCORE: 1303 Bonus ------- None Cogmind --------- Core Integrity 0/250 Matter 265/300 Energy 250/250 System Corruption 0% Temperature Cool (0) Movement Treading (250) Ox1 Location -10/Subcaves Parts ------- > --- POWER (1) -------- Ion Engine > --- PROPULSION (2) --- Light Treads Spiked Treads > --- UTILITY (2) ------ High-capacity Storage Unit Makeshift Light Armor Plating > --- WEAPON (2) ------- Assault Rifle Subdweller Machine Gun > --- INVENTORY (20) --- Light Ion Engine Subdweller Power Source Spiked Treads Spiked Treads Aluminum Leg Aluminum Leg Subdweller Monowheel Disposable Heat Sink Medium Storage Unit Large Battery (200) Transport Network Coupler Makeshift Light Armor Plating Rainbow Chip Subdweller Beam Cannon Subdweller Beam Cannon Subdweller Machine Gun Subdweller Machine Gun Battle Cannon Mining Laser Peak State ------------ > --- POWER ------------ Ion Engine > --- PROPULSION ------- Light Treads Spiked Treads > --- UTILITY ---------- High-capacity Storage Unit Makeshift Light Armor Plating > --- WEAPON ----------- Subdweller Machine Gun Battle Cannon > --- INVENTORY -------- Light Ion Engine Subdweller Power Source Spiked Treads Spiked Treads Aluminum Leg Aluminum Leg Subdweller Monowheel Disposable Heat Sink Medium Storage Unit Large Battery Transport Network Coupler Makeshift Light Armor Plating Rainbow Chip Subdweller Beam Cannon Subdweller Beam Cannon Assault Rifle Subdweller Machine Gun Subdweller Machine Gun Battle Cannon Mining Laser [Rating: 17] Favorites ----------- Power Ion Engine Engine Ion Engine Propulsion Light Treads Treads Light Treads Leg Aluminum Leg Utility High-capacity Storage Unit Device Seismic Detector Storage High-capacity Storage Unit Protection Makeshift Light Armor Plating Weapon Assault Rifle Ballistic Gun Assault Rifle Ballistic Cannon Battle Cannon Special Weapon Mining Laser Build | -11 -10 -10 ------- Run | Yrd Mat Sub Slots Evolved . | . . . Power . | . . . Propulsion . | . . . Utility . | . . . Weapon . | . . . Parts Attached 21 | 7 4 10 Power 1 | 1 . . Engine 1 | 1 . . Core . | . . . Reactor . | . . . Propulsion 7 | 2 3 2 Treads 4 | . 2 2 Leg 3 | 2 1 . Wheel . | . . . Hover . | . . . Flight . | . . . Utility 6 | 2 1 3 Device 2 | 1 . 1 Storage 3 | 1 1 1 Processor . | . . . Hackware . | . . . Protection 1 | . . 1 Artifact . | . . . Weapon 7 | 2 . 5 Energy Gun . | . . . Energy Cannon . | . . . Ballistic Gun 5 | 2 . 3 Ballistic Cannon 1 | . . 1 Launcher . | . . . Special Weapon 1 | . . 1 Impact Weapon . | . . . Slashing Weapon . | . . . Piercing Weapon . | . . . Special Melee Weapon . | . . . Unidentified Prototypes . | . . . Parts Lost 5 | . . 5 Power . | . . . Propulsion 2 | . . 2 Utility 1 | . . 1 Weapon 2 | . . 2 Highest Loss Streak 2 | . . 2 To Critical Strikes . | . . . Average Backups 16 | 3 7 18 Power 1 | . 1 1 Propulsion 4 | 1 3 4 Utility 4 | . 1 5 Weapon 5 | . 2 6 Tool/Special . | . . . Unused Backups 16 | . . 16 Power 2 | . . 2 Propulsion 4 | . . 4 Utility 4 | . . 4 Weapon 6 | . . 6 Tool/Special . | . . . Average Slot Usage (%) 99 | . 100 99 Engine 14 | . 14 14 Treads 26 | . 3 27 Leg 1 | . 24 . Device 4 | . 14 3 Storage 14 | . 14 14 Protection 9 | . . 10 Ballistic Gun 24 | . 28 24 Ballistic Cannon 3 | . . 3 Peak Build Rating 17 | 7 8 17 Average Rating 13 | 5 7 14 On Entrance 5 | . 7 8 Avg Prop Armor Cover (%) . | . . . Naked Turns . | . . . Heaviest Build 61 | 15 20 61 Greatest Support 40 | 20 40 40 Greatest Overweight (x) 2 | 2 . 1 Average Overweight (x) . | . . . Largest Inventory Capacity 20 | 8 10 20 Average Capacity 18 | 7 8 19 Most Carried 20 | 5 10 20 Average Carried 16 | 3 7 18 Final Capacity 20 | 8 10 20 Final Carried 19 | 5 10 19 Class Distribution -------------------- 100% | Mutant Dominant Class ---------------- Mutant | -10/Materials Mutant | -10/Subcaves Resources | -11 -10 -10 ----------- Run | Yrd Mat Sub Matter Collected 1002 | 330 146 526 Remotely . | . . . Salvage Created 885 | 147 398 340 Parts 54 | 12 18 24 Haulers Intercepted 1 | . 1 . Recyclers Shooed 1 | . 1 . Parts Field Recycled . | . . . Retrieved Matter . | . . . Parts Self-Destructed 6 | . . 6 Prevented . | . . . Parts Restored . | . . . Kills | -11 -10 -10 ------- Run | Yrd Mat Sub Combat Hostiles Destroyed 15 | . 4 11 Guns 10 | . 4 6 Cannons 5 | . . 5 Classes Destroyed 8 | 2 3 3 Worker 1 | . 1 . Tunneler 3 | 3 . . Hauler 1 | . 1 . Recycler 3 | 1 2 . Swarmer 3 | . . 3 Grunt 4 | . 4 . Cobbler 2 | . . 2 Subdweller 8 | . . 8 Best Kill Streak 4 | 4 3 3 Combat Bots Only 3 | . 2 3 Max Kills in Single Turn 1 | 1 1 1 Gunslinging . | . . . Exploded . | . . . Melee . | . . . Uniques/NPCs Destroyed . | . . . Combat | -11 -10 -10 -------- Run | Yrd Mat Sub Hostile Shots Fired 111 | . 22 89 Missed 35 | . 6 29 Hits 76 | . 16 60 Projectile 76 | . 16 60 AOE 2 | . . 2 Critical Strikes 2 | . . 2 Damage Taken 1503 | . 175 1328 Core 259 | . 10 249 Absorbed by Shields . | . . . Core Remaining (%) 100 | 100 . . Volleys Fired 104 | 10 29 65 Largest 2 | 2 2 2 Hottest 100 | 40 40 100 Shots Fired 199 | 20 58 121 Gun 177 | 20 58 99 Cannon 21 | . . 21 Launcher . | . . . Special 1 | . . 1 Kinetic 198 | 20 58 120 Thermal 1 | . . 1 Explosive . | . . . Electromagnetic . | . . . Robot Hit Streak 34 | 6 9 34 Robot Miss Streak 6 | 4 5 6 Penetration Max . | . . . Secondary Targets 3 | . 1 2 Max Gunslinging Chain 1 | . 1 1 Shots Hit Robots 122 | 10 34 78 Core Hits 45 | 5 14 26 Critical Kills 1 | . 1 . Critical Parts Destroyed . | . . . Critical Strikes 2 | . 1 1 Destroy 2 | . 1 1 Melee Attacks . | . . . Impact . | . . . Slashing . | . . . Piercing . | . . . Sneak Attacks . | . . . Combat Hostiles . | . . . Follow-up Attacks . | . . . Damage Inflicted 1844 | 146 431 1267 Guns 1576 | 146 431 999 Cannons 268 | . . 268 Explosions . | . . . Melee . | . . . Ramming . | . . . Kinetic 1844 | 146 431 1267 Thermal . | . . . Explosive . | . . . Electromagnetic . | . . . Impact . | . . . Slashing . | . . . Piercing . | . . . Highest Corruption . | . . . Average Corruption . | . . . Corruption Purged . | . . . Corruption Blocked . | . . . Overload Shots . | . . . Overflow Damage . | . . . Projectiles . | . . . Explosions . | . . . Melee . | . . . Knockbacks 3 | . . 3 Impact . | . . . Kinetic 3 | . . 3 Secondary . | . . . Self-Inflicted Damage . | . . . Shots . | . . . Rammed . | . . . Targets Rammed . | . . . Kicked . | . . . Crushed . | . . . Highest Temperature 251 | . 5 251 Average Temperature 127 | . 5 140 Received Heat Transfer 638 | . 96 542 Siege Activations . | . . . Martial Activations . | . . . Shielding Activations . | . . . Robots Disrupted . | . . . Combat Hostiles . | . . . Robots Corrupted . | . . . Combat Hostiles . | . . . Parts Fried . | . . . Impact Corruptions . | . . . Robots Melted . | . . . Combat Hostiles . | . . . Parts Melted 1 | . . 1 Heat Transferred . | . . . Parts Sabotaged . | . . . Parts Stolen . | . . . Parts Stripped . | . . . Power Chain Reactions . | . . . Alert | -11 -10 -10 ------- Run | Yrd Mat Sub Maximum Alert Level . | . . . Low Security (%) 100 | 100 100 . Level 1 . | . . . Level 2 . | . . . Level 3 . | . . . Level 4 . | . . . Level 5 . | . . . High Security . | . . . Max Security . | . . . Peak Influence 87 | 10 87 . Initial . | . . . Average 31 | 2 44 . Influence Increases 297 | 20 157 120 Destroy 0b10 Robot/C 140 | . 80 60 Destroy 0b10 Robot/NC 40 | 20 20 . Destroy Leader 12 | . 12 . Disable Machine 30 | . 30 . Lose Combat Pursuer 75 | . 15 60 Influence Decreases 259 | 20 110 129 Entered New Map 23 | . . 23 Time Decay 226 | 20 110 96 Lost Part 10 | . . 10 Squads Dispatched 2 | . 2 . Investigation . | . . . Extermination . | . . . Reinforcement 2 | . 2 . Assault . | . . . Garrison . | . . . Intercept . | . . . Searches Triggered . | . . . Construction Impeded . | . . . Haulers Reinforced . | . . . Active Scanning Responses . | . . . Cargo Convoy Interrupts . | . . . Stealth | -11 -10 -10 --------- Run | Yrd Mat Sub Distress Signals . | . . . Communications Jammed . | . . . Distress Signals . | . . . Times Spotted 24 | . 8 16 Peak Tracking Total 4 | . 4 4 Tactical Retreats 3 | . 1 2 Traps | -11 -10 -10 ------- Run | Yrd Mat Sub Traps Triggered 3 | . . 3 Indirectly . | . . . Trap Hack Attempts . | . . . Triggered . | . . . Disarmed . | . . . Reprogrammed . | . . . Reused . | . . . Traps Extracted . | . . . Installed . | . . . Triggered . | . . . Machines | -11 -10 -10 ---------- Run | Yrd Mat Sub Machines Disabled 3 | . 2 1 Max in Single Turn 1 | . 1 1 Machines Repaired . | . . . Machines Dismantled . | . . . Machines Sabotaged . | . . . Overloaded Fab Kills . | . . . Hacking | -11 -10 -10 --------- Run | Yrd Mat Sub Machines Accessed 3 | . 1 2 Terminals 1 | . 1 . Fabricators . | . . . Repair Stations . | . . . Recycling Units . | . . . Scanalyzers . | . . . Garrison Access . | . . . Total Hacks 14 | . 2 12 Successful 12 | . . 12 Failed 2 | . 2 . Catastrophic 1 | . 1 . Database Lockouts . | . . . Manual 2 | . 2 . Terminals 2 | . 2 . Fabricators . | . . . Repair Stations . | . . . Recycling Units . | . . . Scanalyzers . | . . . Garrison Access . | . . . Terminal Hacks 12 | . . 12 Record 11 | . . 11 Proto ID Catalog 1 | . . 1 Fabricator Hacks . | . . . Repair Station Hacks . | . . . Recycling Unit Hacks . | . . . Scanalyzer . | . . . Garrison Access Hacks . | . . . Unauthorized Hacks . | . . . Terminals . | . . . Fabricators . | . . . Repair Stations . | . . . Recycling Units . | . . . Scanalyzers . | . . . Garrison Access . | . . . Data Cores Recovered . | . . . Used . | . . . Hacking Detections 1 | . 1 . Full Trace Events . | . . . Feedback Events . | . . . Feedback Blocked . | . . . Robot Schematics Acquired . | . . . Robots Built . | . . . Authchips . | . . . Time . | . . . Total Robot Build Rating . | . . . Part Schematics Acquired . | . . . Parts Built . | . . . Authchips . | . . . Time . | . . . Total Part Build Rating . | . . . Part Studies Acquired . | . . . Parts Repaired . | . . . Time . | . . . Parts Recycled . | . . . Recycled Matter . | . . . Retrieved Matter . | . . . Retrieved Components . | . . . Parts Scanalyzed . | . . . Part Schematics Acquired . | . . . Parts Damaged . | . . . Bothacking | -11 -10 -10 ------------ Run | Yrd Mat Sub Used RIF Installer . | . . . Robots Hacked . | . . . Non-combat . | . . . Combat . | . . . Robot Hacks Applied . | . . . Relay Couplers Released . | . . . Fabnet Peak Effective % . | . . . Robots Rewired . | . . . Allies Hacked . | . . . Hacks Repelled . | . . . Allies | -11 -10 -10 -------- Run | Yrd Mat Sub Total Allies . | . . . Largest Group . | . . . Highest-Rated Group . | . . . Highest-Rated Ally . | . . . Total Orders . | . . . Ally Attacks . | . . . Total Damage . | . . . Kills . | . . . Allies Corrupted . | . . . Allies Melted . | . . . Intel | -11 -10 -10 ------- Run | Yrd Mat Sub Active Infowar (turns) 1148 | 30 295 823 Seismic 1148 | 30 295 823 Robot Analysis Total . | . . . Derelict Logs Recovered 1 | . . 1 Drone Launches . | . . . Drone Recoveries . | . . . Exploration | -11 -10 -10 ------------- Run | Yrd Mat Sub Turns Passed 4602 | 126 295 4181 Spaces Moved 1607 | 55 145 1407 Core 6 | 6 . . Treads 1429 | . 22 1407 Legs 172 | 49 123 . Wheels . | . . . Hover . | . . . Flight . | . . . Fastest Speed 50 | 50 120 160 Average Speed 226 | 125 126 240 Slowest Speed 250 | 190 160 250 Overloaded Moves . | . . . Propulsion Burnouts . | . . . Robots Hopped . | . . . Potential Cave-ins . | . . . Cave-ins Triggered . | . . . Exploration Rate (%) 31 | 4 34 57 Regions Visited 2 Branch Regions 1 Pre-discovered Areas 1 | . . 1 Known Exits Taken . | . . . Unknown Exits Taken 2 | 1 1 . Scrap Searched 7 | . . 7 Spaces Dug . | . . . Terrain Destroyed 1 | . . 1 Melee . | . . . Projectile 1 | . . 1 AOE . | . . . Terrain Rammed . | . . . Walls Destroyed . | . . . Machines Disabled . | . . . Actions | -11 -10 -10 --------- Run | Yrd Mat Sub Total 2368 | 88 199 2081 Wait 595 | 12 13 570 Move 1605 | 54 144 1407 Hop . | . . . Pick Up 26 | 5 6 15 Fast Attach 11 | 7 . 4 Attach 5 | . . 5 Detach 2 | . . 2 Swap 10 | . 4 6 Drop 10 | . 3 7 Fire 104 | 10 29 65 Melee . | . . . Ram . | . . . Kick . | . . . Crush . | . . . Escape Stasis . | . . . Rewire . | . . . Trap . | . . . Miscellaneous . | . . . Route ------- -11/Scrapyard -10/Materials (discovered 2 exits: [*Mat] / *Sub) -10/Subcaves History --------- Turn | Location | Event 22 | -11/Scrapyard | Discovered new exit (range 15) 127 | -11/Scrapyard | Entered Materials 196 | -10/Materials | Discovered new exit (range 16) 304 | -10/Materials | Build established: Mutant 415 | -10/Materials | Discovered new exit (range 4) 422 | -10/Materials | Entered Subcaves 423 | -10/Subcaves | Approached by a straggling Scientist 557 | -10/Subcaves | Visited 4L-MR0's lab 591 | -10/Subcaves | Found Rainbow Chip 763 | -10/Subcaves | Shifting Twisted Machinery released Battle Rifle 780 | -10/Subcaves | Shifting Twisted Machinery released Flamer 1824 | -10/Subcaves | Visited Clippyterm 1831 | -10/Subcaves | Learned Research machine intel 1831 | -10/Subcaves | Learned location of Deep Caves (-7) 2544 | -10/Subcaves | Core integrity fell below 50% 2596 | -10/Subcaves | Learned Materials security intel 3027 | -10/Subcaves | Core integrity fell below 20% 4603 | -10/Subcaves | Destroyed by Y-45 Defender with Heavy Assault Rifle Last Messages --------------- 03202_ S-10 Pest destroyed. 03208_ Lgt. Ion Engine fries itself beyond repair. 03211_ Battle Cannon destroyed. 03214_ S-10 Pest destroyed. 03214_ Switching to secondary target: S-10 Pest. 03217_ Flight Unit fries itself beyond repair. 03217_ S-10 Pest destroyed. 03220_ Flight Unit fries itself beyond repair. 03220_ Acquired 12 matter. 03229_ Flight Unit fries itself beyond repair. 03231_ Lgt. Ion Engine fries itself beyond repair. 03260_ Acquired 18 matter. 03308_ Acquired 10 matter. 03348_ Subatomizers dissect the Sub. Monowheel. 03800_ Triggered Piercing Trap. 03800_ Spikes shoot up from the floor. 03800_ Critical hit (Impale). 03824_ Triggered Piercing Trap. 03824_ Spikes shoot up from the floor. 03824_ Critical hit (Impale). Map ----- +----------------------------------------------------+ | ?????????????????????????????????????????????????? | | ?????????????????????????????????????????????????? | | ?????????????????????????????????????????????????? | | ?????????????????????????????????????????????????? | | ?????????????????????????????????????????????????? | | ?????????????????????????????????????????????????? | | ?????????????????????????????????????????????????? | | ???????????????????????????##????????????????????? | | ????????????????????????? ??????????#######??? | | ??????????????????? ?? ??????##### #### | | ??????????????????? ?? ????### # | | ???????????????????# ????# ^ | | | ???????????????????# ???# ### | | ???????????????????# Y ???# #?##^ # | | ???????????????????# #???####?## ## | | ???????????????????# ######?### ##? | | ???????????????????## ?# # ## ### ## ##? | | ?????????????????### ??# # ##### ## | | ????????????????## #??# # #???## | | ???????????????## ### # ##???## | | ???????????????# ??# # ##?#### | | ??????????????## ## #??#""" | | ??????????????# #??# "^"^ # | | ???????????????# ### #?## "##""# | | ???????????????#### ##?# ^ #?# ### "# | | ??????????????????# @##??# ###### ##### | | ??????????????????## ##???## ##??# "" | | ???????????????????## ??????# #??## | | ????????????????????# ??????# ##??# "" | | ????????????????????## ??????## ##?# # # #" | | ?????????????????????## ???????# #?######### | | ??????????????????????## ???????## #?????????# | | ???????????????????????##????????#### #?????????# | | ????????????????????????????????????####?????????# | | ?????????????????????????????????????????????????? | | ?????????????????????????????????????????????????? | | ?????????????????????????????????????????????????? | | ?????????????????????????????????????????????????? | | ?????????????????????????????????????????????????? | | ?????????????????????????????????????????????????? | | ?????????????????????????????????????????????????? | | ?????????????????????????????????????????????????? | | ?????????????????????????????????????????????????? | | ?????????????????????????????????????????????????? | | ?????????????????????????????????????????????????? | | ?????????????????????????????????????????????????? | | ?????????????????????????????????????????????????? | | ?????????????????????????????????????????????????? | | | | | +----------------------------------------------------+ Best States ------------- Heat Dissipation 25 Coolant Potential 50 Energy Generation 10 Energy Capacity 250 Matter Stores 300 Matter Capacity 300 Sight Range 16 Terrain Scan Density 10 Armor Coverage 100 Evasion (%) 55 Recoil Reduction 2 Item Schematics ----------------- None Robot Schematics ------------------ None Fabricated ------------ Nothing Repaired ---------- Nothing Studied --------- None Alien Tech Used ----------------- None Achievements -------------- Mistaken Identity Challenges ------------ None Game ------ Seed FrostConcussivePick Manual? 0 Play Time 00:14:37 Cumulative 732.5 hours Start 2025.10.25 @ 16:10:39 End 2025.10.25 @ 16:22:44 Sessions 1 Manual Loads 0 Difficulty Rogue Special Mode None Game No. 461 Rogue 461 Adventurer 0 Explorer 0 Win Type - Total 10 Types 7/0/1/1/1/0/0/0/0/0 Lore% 79 Gallery% 78 Achievement% 50 Wizard Run 0 Options --------- Layout 0 ASCII 0 Keyboard 0 Movement Mouse Keybinds 1 Fullscreen 2 Font 24/Smallcaps Map View 76x50 Zoom Use 0% Tactical HUD 1 Map Filters NONE Filters NONE Steam 1 RUN: f31acb4e-986b-4d8d-93ac-721cf07edda0